{"text_format":"1","workbook":"xlsx","n_sheets":4,"sheets":["1 Specifikation","2 Avtalstecknande","Admin","SysAdmin"],"not_rendered":{"charts":0,"images":3,"macros":1,"external_links":1,"defined_names":93,"comments":0,"pivot_tables":0},"unopened":[],"bounds":{"document_bytes":16777216,"sheet_cells":100000,"rows_first":2000,"rows_last":500,"rows_between":2000,"halvings":0,"cell_chars":16384,"cell_head_chars":4096},"cells_cut":0,"cells_raw":0,"read":"whole","date_system":"1900"}

{"sheet":"1 Specifikation","index":0,"n_rows":236,"n_cols":34,"rows_kept":236,"cut":false,"hidden":false,"merged":[[106,1,106,2],[221,1,221,8],[188,1,188,8],[219,1,219,8],[218,1,218,8],[173,1,173,8],[170,1,170,5],[199,1,199,8],[123,12,123,13],[124,3,124,10],[123,3,123,10],[204,1,204,5],[194,1,194,8],[195,1,195,8],[196,1,196,8],[200,1,202,8],[133,12,133,13],[131,12,131,13],[131,1,131,2],[132,12,132,13],[138,12,138,13],[124,12,124,13],[130,12,130,13],[128,1,128,2],[57,24,57,25],[59,16,59,21],[58,16,58,21],[227,1,227,8],[132,1,132,2],[137,1,137,2],[133,1,133,2],[185,1,185,8],[175,1,175,8],[176,1,176,8],[187,1,187,8],[190,1,190,8],[182,1,182,8],[181,1,181,8],[179,1,179,8],[205,1,205,8],[206,1,215,8],[147,1,147,3],[189,1,189,8],[220,1,220,8],[193,1,193,8],[134,1,134,2],[89,16,89,23],[125,12,125,13],[116,16,116,23],[115,12,115,13],[109,1,109,2],[116,12,116,13],[111,7,111,9],[47,26,47,43],[115,16,115,23],[114,12,114,13],[114,16,114,23],[78,11,81,13],[111,11,112,13],[54,24,54,25],[53,16,53,21],[52,22,52,23],[52,16,52,21],[57,16,57,21],[64,24,64,25],[63,24,63,25],[58,24,58,25],[59,24,59,25],[61,24,61,25],[64,16,64,21],[56,22,56,23],[56,24,56,25],[128,12,128,13],[129,1,129,2],[129,12,129,13],[127,12,127,13],[127,16,127,23],[126,16,126,23],[129,16,129,23],[130,3,130,10],[129,3,129,10],[128,3,128,10],[127,3,127,10],[126,3,126,10],[63,16,63,21],[63,22,63,23],[64,22,64,23],[49,22,49,23],[50,2,50,4],[65,16,65,21],[57,6,57,11],[59,6,59,11],[60,2,60,4],[60,6,60,11],[64,6,64,11],[58,2,58,4],[59,22,59,23],[49,2,49,4],[49,6,49,11],[56,16,56,21],[57,22,57,23],[92,3,92,13],[63,6,63,11],[97,1,97,2],[90,1,90,2],[99,1,99,2],[100,3,100,13],[96,1,96,2],[63,2,63,4],[64,2,64,4],[78,1,78,3],[76,4,76,8],[91,1,91,2],[98,1,98,2],[102,1,102,2],[105,1,105,2],[44,15,44,16],[45,15,45,19],[19,1,24,8],[46,2,46,4],[13,19,13,22],[35,3,35,4],[36,6,36,7],[32,3,32,4],[33,1,33,2],[44,1,44,5],[27,15,27,22],[15,4,15,8],[15,18,15,22],[29,3,29,4],[14,15,14,18],[14,19,14,22],[26,15,26,22],[14,1,14,3],[46,22,46,23],[46,6,46,11],[42,1,42,10],[45,1,45,5],[9,7,9,8],[13,1,13,3],[12,7,12,8],[12,4,12,6],[9,15,9,18],[9,19,9,22],[38,1,38,10],[15,15,15,17],[19,15,23,22],[39,1,39,10],[41,1,41,10],[10,4,10,6],[10,7,10,8],[11,4,11,6],[11,7,11,8],[10,1,10,3],[13,4,13,8],[14,4,14,8],[32,1,32,2],[30,3,30,4],[36,1,36,2],[36,3,36,4],[30,6,30,8],[33,3,33,4],[27,1,27,8],[8,15,8,20],[11,15,11,18],[35,1,35,2],[30,1,30,2],[8,1,8,6],[8,7,8,8],[8,21,8,22],[9,1,9,3],[9,4,9,6],[16,4,16,8],[16,18,16,22],[16,15,16,17],[12,19,12,20],[10,15,10,18],[11,19,11,20],[11,21,11,22],[12,15,12,18],[11,1,11,3],[12,1,12,3],[10,19,10,22],[12,21,12,22],[13,15,13,18],[16,1,16,3],[15,1,15,3],[2,1,2,4],[2,15,2,17],[2,19,2,22],[3,1,4,8],[3,15,4,22],[7,1,7,6],[7,7,7,8],[7,15,7,20],[7,21,7,22],[5,1,5,8],[6,1,6,8],[5,9,6,14],[3,9,3,14],[4,9,4,14],[7,9,7,14],[235,19,235,22],[232,15,233,22],[229,15,229,22],[228,15,228,22],[231,15,231,22],[227,15,227,22],[179,15,179,18],[144,18,145,19],[149,20,149,21],[160,18,160,19],[167,20,167,21],[164,17,165,19],[161,20,161,21],[147,20,147,21],[166,18,166,19],[148,20,148,21],[225,15,226,22],[185,15,185,18],[160,20,160,21],[166,20,166,21],[173,15,173,18],[163,20,163,21],[218,15,218,22],[221,15,221,22],[55,24,55,25],[29,6,29,8],[29,1,29,2],[35,6,35,7],[50,24,50,25],[51,24,51,25],[46,24,46,25],[47,24,47,25],[47,16,47,21],[46,16,46,21],[47,6,47,11],[47,2,47,4],[52,24,52,25],[53,22,53,23],[53,24,53,25],[54,16,54,21],[54,22,54,23],[47,22,47,23],[48,24,48,25],[49,24,49,25],[50,6,50,11],[50,16,50,21],[50,22,50,23],[51,2,51,4],[60,24,60,25],[60,22,60,23],[62,6,62,11],[61,22,61,23],[62,2,62,4],[61,16,61,21],[61,2,61,4],[62,24,62,25],[62,16,62,21],[61,6,61,11],[62,22,62,23],[60,16,60,21],[48,6,48,11],[58,6,58,11],[51,22,51,23],[55,22,55,23],[55,2,55,4],[55,6,55,11],[53,2,53,4],[53,6,53,11],[59,2,59,4],[48,2,48,4],[56,6,56,11],[58,22,58,23],[52,2,52,4],[52,6,52,11],[54,2,54,4],[54,6,54,11],[57,2,57,4],[55,16,55,21],[56,2,56,4],[48,16,48,21],[51,6,51,11],[51,16,51,21],[49,16,49,21],[48,22,48,23],[95,16,95,23],[66,24,66,25],[68,24,68,25],[65,24,65,25],[65,22,65,23],[65,2,65,4],[65,6,65,11],[79,1,79,9],[85,10,88,10],[74,1,74,9],[84,1,85,9],[81,1,81,9],[87,1,87,5],[83,1,83,9],[66,22,66,23],[71,20,71,22],[66,2,66,4],[85,11,87,13],[88,1,88,4],[66,16,66,21],[73,1,73,9],[70,1,70,5],[80,1,80,3],[66,6,66,11],[98,16,98,23],[97,16,97,23],[96,16,96,23],[90,3,90,13],[91,3,91,13],[104,1,104,2],[92,1,92,2],[95,1,95,2],[109,3,109,13],[98,3,98,13],[99,3,99,13],[95,3,95,13],[96,3,96,13],[97,3,97,13],[101,1,101,2],[102,3,102,13],[92,16,92,23],[109,16,109,23],[108,16,108,23],[107,16,107,23],[106,16,106,23],[105,16,105,23],[104,16,104,23],[103,16,103,23],[117,1,117,2],[141,17,143,17],[123,16,123,23],[137,17,137,18],[116,1,116,2],[107,1,107,2],[93,1,93,2],[94,1,94,2],[114,1,114,2],[100,1,100,2],[108,1,108,2],[103,1,103,2],[115,1,115,2],[121,12,121,13],[122,3,122,10],[121,3,121,10],[120,3,120,10],[119,3,119,10],[94,16,94,23],[93,16,93,23],[114,3,114,10],[116,3,116,10],[100,16,100,23],[99,16,99,23],[144,20,145,21],[175,23,224,27],[137,12,137,13],[125,3,125,10],[89,1,89,2],[89,3,89,13],[93,3,93,13],[94,3,94,13],[155,25,155,27],[141,18,143,23],[134,12,134,13],[134,16,134,23],[131,16,131,23],[144,22,145,23],[118,1,118,2],[127,1,127,2],[123,1,123,2],[121,1,121,2],[120,1,120,2],[124,1,124,2],[130,1,130,2],[119,1,119,2],[126,12,126,13],[145,11,145,12],[131,3,131,10],[8,9,8,14],[9,9,9,14],[91,16,91,23],[90,16,90,23],[115,3,115,10],[154,17,155,18],[160,1,160,13],[152,15,152,16],[152,17,152,18],[153,1,155,13],[149,18,149,19],[101,16,101,23],[132,16,132,23],[133,16,133,23],[137,19,137,20],[134,3,134,10],[133,3,133,10],[136,12,136,13],[126,1,126,2],[130,16,130,23],[128,16,128,23],[146,11,146,12],[146,22,148,23],[113,1,113,4],[233,1,235,8],[148,18,148,19],[219,15,219,22],[220,15,220,22],[146,20,146,21],[147,18,147,19],[171,1,171,8],[121,16,121,23],[120,12,120,13],[193,15,193,18],[180,1,180,8],[161,1,167,13],[186,1,186,8],[163,18,163,19],[162,18,162,19],[174,1,174,8],[162,20,162,21],[144,17,145,17],[146,18,146,19],[144,16,145,16],[141,15,143,16],[137,22,137,23],[132,3,132,10],[229,5,231,12],[118,3,118,10],[101,3,101,13],[117,12,117,13],[125,1,125,2],[125,16,125,23],[118,12,118,13],[118,16,118,23],[124,16,124,23],[102,16,102,23],[120,16,120,23],[117,16,117,23],[103,3,103,13],[104,3,104,13],[105,3,105,13],[106,3,106,13],[107,3,107,13],[108,3,108,13],[119,16,119,23],[119,12,119,13],[122,16,122,23],[117,3,117,10],[122,1,122,2],[122,12,122,13]]}
[]
[null,null,null,null,null,null,null,null,null,null,null,null,null,null,{"$f":"\"Avrop nr: \"&B15","v":"Avrop nr: "},null,null,null,null,null,null,null,{"$f":"\"Avrop nr: \"&B15","v":"Avrop nr: "}]
[null,"Avropsförfrågan",null,null,null,null,null,null,null,null,null,null,null,null,null,"Avropssvar",null,null,null,{"$f":"IF(LarmStatus,\"Minst ett av de obligatoriska kraven är inte ifyllda eller besvarade med Nej\",\"\")","v":"Minst ett av de obligatoriska kraven är inte ifyllda eller besvarade med Nej"},null,null,null,null,null,null,null,null,null,null,null,null,null,{"$f":"OR(AH4:AH881)","v":true}]
[null,"Instruktion till avropande organisation: \nSpara ned blanketten på din dator. Blanketten innehåller macron som måste vara aktiverade för att formler i beräkningarna ska fungera\nGulmarkerade rutor fylls i av avropare innan blanketten skickas.\n\nBlanketten skickas med e-post till antagna leverantörer inom aktuellt avropsområde.\nSe vidare \"Vägledning vid avrop\".",null,null,null,null,null,null,null,"Ramavtalsområde",null,null,null,null,null,"Instruktion till leverantör:\nBlåmarkerade rutor fylls i av leverantören.\nLäs och kontrollera obligatoriska krav.\nReturnera blanketten med e-post eller enligt instruktion från avropande organisation (oavsett Ja eller Nej).\nMer information finns under vissa rubriker"]
[null,null,null,null,null,null,null,null,null,"IT-konsulttjänster"]
[null,"Steg 1 - Administrativa uppgifter",null,null,null,null,null,null,null,"Avrop enligt förnyad konkurrensutsättning\n"]
[null,"Uppgifter om avropande organisation",null,null,null,null,null,null,null,null,null,null,null,null,null,"Uppgifter om Ramavtalsleverantören"]
[null,"Myndighet/Organisation (namn)",null,null,null,null,null,"Organisationsnummer",null,null,null,null,null,null,null,"Ramavtalsleverantörens namn",null,null,null,null,null,"Organisationsnummer"]
[null,null,null,null,null,null,null,null,null,"Avropsblankett"]
[null,"Postadress",null,null,"Postnummer",null,null,"Ort",null,"Version 1.0",null,null,null,null,null,"Kontaktperson",null,null,null,"E-post"]
[]
[null,"Avdelning, enhet etc",null,null,"Kontaktperson",null,null,"Telefon",null,null,null,null,null,null,null,"Postadress",null,null,null,"Postnummer",null,"Ort"]
[]
[null,"Referens/diarienr för avropet",null,null,"E-post",null,null,null,null,null,null,null,null,null,null,"Telefon",null,null,null,"Offertnummer el likn för detta avropssvar"]
[]
[null,null,null,null,null,null,null,null,null,null,null,null,null,null,null,"Avropssvar lämnas Ja/Nej",null,null,"Om Nej, motivering"]
[null,null,null,null,null,null,null,null,null,null,null,null,null,null,null,"Ja",null,null,null,null,null,null,null,null,null,null,null,null,null,null,null,null,null,{"$f":"IF(AND(P17=0,P17<>\"Ja\"),TRUE,FALSE)","v":false}]
[]
[null,"Förnyad kontroll av leverantörskrav (ESPD)",null,null,null,null,null,null,null,null,null,null,null,null,null,"Leverantörskrav (ESPD) - Ramavtalsleverantörens intygande"]
[null,"Av 15 kap. 1 samt 4 §§ LOU framgår att ramavtalsleverantören ska lämna en ny egenförsäkran samt att en ny kontroll av kvalificeringskrav och uteslutningsgrunder ska genomföras vid avrop genom förnyad konkurrensutsättning. Kammarkollegiet ansvarar för denna kontrollskyldighet genom att löpande genomföra leverantörsprövning under hela ramavtalsperioden. \nKontrollskyldigheten bör också hanteras så att ramavtalsleverantören i sitt avropssvar bekräftar att i ramavtalsupphandlingen lämnad egenförsäkran fortfarande är korrekt, samt att ingivna bevis fortfarande är aktuella. Avropande myndighet kan själv begära in ett eller flera bevis enligt punkten 2 till höger.",null,null,null,null,null,null,null,null,null,null,null,null,null,"Genom att lämna avropssvar, bekräftar ramavtalsleverantören följande:\n1.\tAtt i ramavtalsupphandlingen lämnad egenförsäkran fortfarande är korrekt.\n2.\tAtt i ramavtalsupphandlingen ingivna bevis, såsom Sanningsförsäkran avseende uteslutningsgrunder (gällande leverantören och ev. åberopade företag) fortfarande aktuella.\n3.\tAtt ramavtalsleverantören har säkerställt att ev. åberopade företag inte omfattas av någon uteslutningsgrund.\nMed \"åberopat företag\" avses specifikt en underleverantör som har åberopats i ramavtalsupphandlingen för att uppfylla krav på ekonomisk, teknisk och yrkesmässig kapacitet”."]
[]
[]
[]
[]
[]
[null,null,null,null,null,null,null,null,null,null,null,null,null,null,null,"Uppgift om underleverantörer"]
[null,"Information om avropet, t ex syfte och omfattning",null,null,null,null,null,null,null,null,null,null,null,null,null,"Leverantören ska redogöra för vilka underleverantör/er som kommer att medverka till fullgörandet av kontraktet. Av redogörelsen ska även framgå vilka delar underleverantörerna fullgör. Med Underleverantör avses en juridisk eller fysisk person som Ramavtalsleverantören anlitar för att fullgöra hela eller delar av det åtagande som följer av Ramavtalet och Kontrakt. \n"]
[]
[]
[null,"Sista dag för att ställa frågor",null,"Sista dag för \nsvar på frågor",null,null,"E-post för frågor (om annan än ovan)"]
[]
[]
[null,"Sista dag för avropssvar",null,"Avropssvarets giltighetstid"]
[]
[]
[null,"Kontraktets giltighetstid (t.o.m. datum)",null,"Förlängningsoption\n(t.o.m. datum)"]
[]
[]
[null,"Ange geografiskt område"]
[null,"Delområde 1"]
[]
[null,"Ange delområde"]
[null,"Välj kompetensområde"]
[]
[null,"Steg 2 - Specifikation av tjänst",null,null,null,null,null,null,null,null,null,null,null,null,null,"Leverantörens svar"]
[null,null,null,null,null,null,null,null,""]
[null,"Tjänst nr","Välj i lista\nOBS! Varje kompetens/roll kan väljas flera gånger.",null,null,"Kompetens-nivå","Specificera tjänster i fritext eller hänvisa till bilaga. Ange bilagans nummer. Om specifikation görs i en bilaga anges \"Antal\" till 1 för hela avropet. Vid flera bilagor, använd en rad per bilaga.\n\nSpecificera uppdragets omfattning, t.ex. start- och slutdatum",null,null,null,null,null,"Anges omfattning på annat sätt än i timmar? (bifoga i så fall beskrivning i bilaga)","Antal\n(ange alltid 1 om omfattning anges i bilaga)","Timmar (eller enl.  Beskrivning i bilaga)",null,"Vid behov specificera tjänster, annan information eller hänvisa till bilaga.",null,null,null,null,null,"Pris/enhet (timpris får ej överstiga avtalat taktimpris)\n",null,"Pris totalt"]
[null,"01.","Välj kompetens/roll",null,null,null,null,null,null,null,null,null,null,null,null,null,null,null,null,null,null,null,null,null,{"$f":"IFERROR(IF(M48=\"TRUE\",W48,W48*N48),\"\")","v":0}]
[null,"02.","Välj kompetens/roll",null,null,null,null,null,null,null,null,null,null,null,null,null,null,null,null,null,null,null,null,null,{"$f":"IFERROR(IF(M49=\"TRUE\",W49,W49*N49),\"\")","v":0}]
[null,"03.","Välj kompetens/roll",null,null,null,null,null,null,null,null,null,null,null,null,null,null,null,null,null,null,null,null,null,0]
[null,"04.","Välj kompetens/roll",null,null,null,null,null,null,null,null,null,null,null,null,null,null,null,null,null,null,null,null,null,0]
[null,"05.","Välj kompetens/roll",null,null,null,null,null,null,null,null,null,null,null,null,null,null,null,null,null,null,null,null,null,0]
[null,"06.","Välj kompetens/roll",null,null,null,null,null,null,null,null,null,null,null,null,null,null,null,null,null,null,null,null,null,0]
[null,"07.","Välj kompetens/roll",null,null,null,null,null,null,null,null,null,null,null,null,null,null,null,null,null,null,null,null,null,0]
[null,"08.","Välj kompetens/roll",null,null,null,null,null,null,null,null,null,null,null,null,null,null,null,null,null,null,null,null,null,0]
[null,"09.","Välj kompetens/roll",null,null,null,null,null,null,null,null,null,null,null,null,null,null,null,null,null,null,null,null,null,0]
[null,"10.","Välj kompetens/roll",null,null,null,null,null,null,null,null,null,null,null,null,null,null,null,null,null,null,null,null,null,0]
[null,"11.","Välj kompetens/roll",null,null,null,null,null,null,null,null,null,null,null,null,null,null,null,null,null,null,null,null,null,0]
[null,"12.","Välj kompetens/roll",null,null,null,null,null,null,null,null,null,null,null,null,null,null,null,null,null,null,null,null,null,0]
[null,"13.","Välj kompetens/roll",null,null,null,null,null,null,null,null,null,null,null,null,null,null,null,null,null,null,null,null,null,0]
[null,"14.","Välj kompetens/roll",null,null,null,null,null,null,null,null,null,null,null,null,null,null,null,null,null,null,null,null,null,0]
[null,"15.","Välj kompetens/roll",null,null,null,null,null,null,null,null,null,null,null,null,null,null,null,null,null,null,null,null,null,0]
[null,"16.","Välj kompetens/roll",null,null,null,null,null,null,null,null,null,null,null,null,null,null,null,null,null,null,null,null,null,0]
[null,"17.","Välj kompetens/roll",null,null,null,null,null,null,null,null,null,null,null,null,null,null,null,null,null,null,null,null,null,0]
[null,"18.","Välj kompetens/roll",null,null,null,null,null,null,null,null,null,null,null,null,null,null,null,null,null,null,null,null,null,0]
[null,"19.","Välj kompetens/roll",null,null,null,null,null,null,null,null,null,null,null,null,null,null,null,null,null,null,null,null,null,0]
[null,"20.","Välj kompetens/roll",null,null,null,null,null,null,null,null,null,null,null,null,null,null,null,null,null,null,null,null,null,0]
[]
[null,null,null,null,null,null,null,null,null,null,null,null,null,null,null,null,null,null,null,null,null,null,null,"Totalt pris (utvärderas): ",{"$f":"SUM(Y48:Z67)","v":0}]
[]
[]
[]
[null,"Steg 3 - Grund för tilldelning av kontrakt"]
[null,"I enlighet med ramavtalet sker tilldelning av kontrakt utifrån tilldelningsgrunden: Ekonomiskt mest fördelaktiga utifrån bästa förhållande mellan pris och kvalitet"]
[null,"Alt. 2. Ekonomiskt mest fördelaktiga utifrån bästa förhållande mellan pris och kvalitet",null,null,null,null,null,null,null,null,"(Tag bort detta fält och valmöjligheten, tilldelningsgrunden ska vara fast utifrån respektive ramavtal.)"]
[1]
[1]
[1]
[1,"Utvärderingsmodell",null,null,null,null,null,null,null,null,null,"Instruktion:\nObservera att de två föreslagna alternativen (utöver Lägsta pris) endast är exempel på vanligt förekommande utvärderings-modeller. Det är alltid den avropande organisationen som avgör om man vill använda sig av dem. Det går även att ange egen modell."]
[1,"Ange nedan utvärderingsmodell som kommer att tillämpas för att utse vinnande avropssvar. \n"]
[1]
[1,"Välj utvärdering….."]
[]
[null,"Förfarande  om två avropssvar har erhållit samma poängsumma/utvärderingspris"]
[null,"Om två eller flera avropssvar erhåller samma poängsumma/utvärderingspris kommer avropssvaret med det lägsta priset att antas. Om två eller flera avropssvar därefter fortfarande behöver särskiljas kommer lottning att genomföras."]
[]
[]
[null,"Steg 4 - Kravspecifikation",null,null,null,null,null,null,null,null,null,null,null,null,null,"Kravuppfyllnad"]
[null,"Obligatoriska krav (\"ska-krav\")"]
[null,"Välj kompetens/roll (endast de som valts i steg 2 ovan är möjliga)\nOBS! Varje kompetens/roll kan väljas flera gånger.",null,"Precisera krav i fritext eller hänvisa till bilaga",null,null,null,null,null,null,null,null,null,null,null,"Uppfyller kravet?\nJa/Nej","Beskrivning av hur leverantören uppfyller kravet eller referera till bilaga"]
[null,"Välj kompetens/roll",null,null,null,null,null,null,null,null,null,null,null,null,null,null,null,null,null,null,null,null,null,null,null,null,{"$f":"IF(OR(LEFT(B91,4)=\"Välj\",B91=\"\"),TRUE,FALSE)","v":true},{"$f":"IF(AA91=FALSE,IF(P91=\"Ja\",FALSE,TRUE),IF(P91=\"\",TRUE,FALSE))","v":true},null,null,null,null,null,{"$f":"IF(AA91=AB91,FALSE,TRUE)","v":false}]
[null,"Välj kompetens/roll",null,null,null,null,null,null,null,null,null,null,null,null,null,null,null,null,null,null,null,null,null,null,null,null,{"$f":"IF(OR(LEFT(B92,4)=\"Välj\",B92=\"\"),TRUE,FALSE)","v":true},{"$f":"IF(AA92=FALSE,IF(P92=\"Ja\",FALSE,TRUE),IF(P92=\"\",TRUE,FALSE))","v":true},null,null,null,null,null,{"$f":"IF(AA92=AB92,FALSE,TRUE)","v":false}]
[null,"Välj kompetens/roll",null,null,null,null,null,null,null,null,null,null,null,null,null,null,null,null,null,null,null,null,null,null,null,null,true,true,null,null,null,null,null,false]
[null,"Välj kompetens/roll",null,null,null,null,null,null,null,null,null,null,null,null,null,null,null,null,null,null,null,null,null,null,null,null,true,true,null,null,null,null,null,false]
[null,"Välj kompetens/roll",null,null,null,null,null,null,null,null,null,null,null,null,null,null,null,null,null,null,null,null,null,null,null,null,true,true,null,null,null,null,null,false]
[null,"Välj kompetens/roll",null,null,null,null,null,null,null,null,null,null,null,null,null,null,null,null,null,null,null,null,null,null,null,null,true,true,null,null,null,null,null,false]
[null,"Välj kompetens/roll",null,null,null,null,null,null,null,null,null,null,null,null,null,null,null,null,null,null,null,null,null,null,null,null,true,true,null,null,null,null,null,false]
[null,"Välj kompetens/roll",null,null,null,null,null,null,null,null,null,null,null,null,null,null,null,null,null,null,null,null,null,null,null,null,true,true,null,null,null,null,null,false]
[null,"Välj kompetens/roll",null,null,null,null,null,null,null,null,null,null,null,null,null,null,null,null,null,null,null,null,null,null,null,null,true,true,null,null,null,null,null,false]
[null,"Välj kompetens/roll",null,null,null,null,null,null,null,null,null,null,null,null,null,null,null,null,null,null,null,null,null,null,null,null,true,true,null,null,null,null,null,false]
[null,"Välj kompetens/roll",null,null,null,null,null,null,null,null,null,null,null,null,null,null,null,null,null,null,null,null,null,null,null,null,true,true,null,null,null,null,null,false]
[null,"Välj kompetens/roll",null,null,null,null,null,null,null,null,null,null,null,null,null,null,null,null,null,null,null,null,null,null,null,null,true,true,null,null,null,null,null,false]
[null,"Välj kompetens/roll",null,null,null,null,null,null,null,null,null,null,null,null,null,null,null,null,null,null,null,null,null,null,null,null,true,true,null,null,null,null,null,false]
[null,"Välj kompetens/roll",null,null,null,null,null,null,null,null,null,null,null,null,null,null,null,null,null,null,null,null,null,null,null,null,true,true,null,null,null,null,null,false]
[null,"Välj kompetens/roll",null,null,null,null,null,null,null,null,null,null,null,null,null,null,null,null,null,null,null,null,null,null,null,null,true,true,null,null,null,null,null,false]
[null,"Välj kompetens/roll",null,null,null,null,null,null,null,null,null,null,null,null,null,null,null,null,null,null,null,null,null,null,null,null,true,true,null,null,null,null,null,false]
[null,"Välj kompetens/roll",null,null,null,null,null,null,null,null,null,null,null,null,null,null,null,null,null,null,null,null,null,null,null,null,true,true,null,null,null,null,null,false]
[null,"Välj kompetens/roll",null,null,null,null,null,null,null,null,null,null,null,null,null,null,null,null,null,null,null,null,null,null,null,null,true,true,null,null,null,null,null,false]
[null,"Välj kompetens/roll",null,null,null,null,null,null,null,null,null,null,null,null,null,null,null,null,null,null,null,null,null,null,null,null,true,true,null,null,null,null,null,false]
[null,"Välj kompetens/roll",null,null,null,null,null,null,null,null,null,null,null,null,null,null,null,null,null,null,null,null,null,null,null,null,true,true,null,null,null,null,null,false]
[]
[]
[]
[null,"Tilldelningskriterier (\"bör-krav\")"]
[null,"Välj kompetens/roll (endast de som valts i steg 2 ovan är möjliga)\nOBS! Varje kompetens/roll kan väljas flera gånger.",null,"Precisera krav i fritext eller hänvisa till bilaga\n\n",null,null,null,null,null,null,null,{"$f":"IF(TillDelVal=1,\"\",\"Ange poäng-värde\n\")","v":"Ange poäng-värde\n"},{"$f":"IF(TillDelVal=1,\"\",\"Ange prisavdrag från totalpriset (kr)\n\")","v":"Ange prisavdrag från totalpriset (kr)\n"},null,null,"Uppfyller kravet?","Beskrivning av hur leverantören uppfyller kravet eller referera till bilaga"]
[null,"Välj tjänst/exempelroll",null,null,null,null,null,null,null,null,null,null,null,null,null,null,null,null,null,null,null,null,null,null,null,null,{"$f":"IF(OR(LEFT(B116,4)=\"Välj\",B116=\"\"),TRUE,FALSE)","v":true},{"$f":"IF(G116=\"Ska-krav\",TRUE,FALSE)","v":false},null,null,null,null,null,{"$f":"IF(AND(D116=\"Ska-krav\",P116<>\"Ja\"),TRUE,FALSE)","v":false}]
[null,"Välj tjänst/exempelroll",null,null,null,null,null,null,null,null,null,null,null,null,null,null,null,null,null,null,null,null,null,null,null,null,{"$f":"IF(AND(G117=\"Bör-krav\",L117<=0),TRUE,FALSE)","v":false},false,null,null,null,null,null,{"$f":"IF(AND(D117=\"Ska-krav\",P117<>\"Ja\"),TRUE,FALSE)","v":false}]
[null,"Välj tjänst/exempelroll",null,null,null,null,null,null,null,null,null,null,null,null,null,null,null,null,null,null,null,null,null,null,null,null,false,false,null,null,null,null,null,false]
[null,"Välj tjänst/exempelroll",null,null,null,null,null,null,null,null,null,null,null,null,null,null,null,null,null,null,null,null,null,null,null,null,false,false,null,null,null,null,null,false]
[null,"Välj tjänst/exempelroll",null,null,null,null,null,null,null,null,null,null,null,null,null,null,null,null,null,null,null,null,null,null,null,null,false,false,null,null,null,null,null,false]
[null,"Välj tjänst/exempelroll",null,null,null,null,null,null,null,null,null,null,null,null,null,null,null,null,null,null,null,null,null,null,null,null,false,false,null,null,null,null,null,false]
[null,"Välj tjänst/exempelroll",null,null,null,null,null,null,null,null,null,null,null,null,null,null,null,null,null,null,null,null,null,null,null,null,false,false,null,null,null,null,null,false]
[null,"Välj tjänst/exempelroll",null,null,null,null,null,null,null,null,null,null,null,null,null,null,null,null,null,null,null,null,null,null,null,null,false,false,null,null,null,null,null,false]
[null,"Välj tjänst/exempelroll",null,null,null,null,null,null,null,null,null,null,null,null,null,null,null,null,null,null,null,null,null,null,null,null,false,false,null,null,null,null,null,false]
[null,"Välj tjänst/exempelroll",null,null,null,null,null,null,null,null,null,null,null,null,null,null,null,null,null,null,null,null,null,null,null,null,false,false,null,null,null,null,null,false]
[null,"Välj tjänst/exempelroll",null,null,null,null,null,null,null,null,null,null,null,null,null,null,null,null,null,null,null,null,null,null,null,null,false,false,null,null,null,null,null,false]
[null,"Välj tjänst/exempelroll",null,null,null,null,null,null,null,null,null,null,null,null,null,null,null,null,null,null,null,null,null,null,null,null,false,false,null,null,null,null,null,false]
[null,"Välj tjänst/exempelroll",null,null,null,null,null,null,null,null,null,null,null,null,null,null,null,null,null,null,null,null,null,null,null,null,false,false,null,null,null,null,null,false]
[null,"Välj tjänst/exempelroll",null,null,null,null,null,null,null,null,null,null,null,null,null,null,null,null,null,null,null,null,null,null,null,null,false,false,null,null,null,null,null,false]
[null,"Välj tjänst/exempelroll",null,null,null,null,null,null,null,null,null,null,null,null,null,null,null,null,null,null,null,null,null,null,null,null,false,false,null,null,null,null,null,false]
[null,"Välj tjänst/exempelroll",null,null,null,null,null,null,null,null,null,null,null,null,null,null,null,null,null,null,null,null,null,null,null,null,false,false,null,null,null,null,null,false]
[null,"Välj tjänst/exempelroll",null,null,null,null,null,null,null,null,null,null,null,null,null,null,null,null,null,null,null,null,null,null,null,null,false,false,null,null,null,null,null,false]
[null,"Välj tjänst/exempelroll",null,null,null,null,null,null,null,null,null,null,null,null,null,null,null,null,null,null,null,null,null,null,null,null,false,false,null,null,null,null,null,false]
[null,"Välj tjänst/exempelroll",null,null,null,null,null,null,null,null,null,null,null,null,null,null,null,null,null,null,null,null,null,null,null,null,false,false,null,null,null,null,null,false]
[null,"Välj tjänst/exempelroll",null,null,null,null,null,null,null,null,null,null,null,null,null,null,null,null,null,null,null,null,null,null,null,null,false,false,null,null,null,null,null,false]
[1]
[1,null,null,null,null,null,null,null,null,null,null,{"$f":"IF(UtvarderingsVal=\"Alt3\",\"\",\"Max poäng för uppfyllda bör-krav\")","v":"Max poäng för uppfyllda bör-krav"},{"$f":"IF(UtvarderingsVal=\"Alt2\",\"\",\"Max prisavdrag för uppfyllda bör-krav\")","v":"Max prisavdrag för uppfyllda bör-krav"}]
[1,null,null,null,null,null,null,null,null,null,null,{"$f":"IF(UtvarderingsVal=\"Alt3\",\"\",SUM(L116:L135))","v":0},{"$f":"IF(UtvarderingsVal=\"Alt2\",\"\",SUM(M116:M135))","v":0},null,null,{"$f":"IF(UtvarderingsVal=\"Alt3\",\"\",\"Total erhållen poängsumma:\")","v":"Total erhållen poängsumma:"},{"$f":"IF(UtvarderingsVal=\"Alt3\",\"\",SUMIF(P116:P135,\"Ja\",L116:L135))","v":0},null,null,{"$f":"IF(UtvarderingsVal=\"Alt2\",\"\",\"Totalt erhållet prisavdrag:\")","v":"Totalt erhållet prisavdrag:"},null,{"$f":"IF(UtvarderingsVal=\"Alt2\",\"\",SUMIF(P116:P135,\"Ja\",M116:M135))","v":0}]
[]
[]
[]
["Ut1","Alt. 2. Summan av viktade poäng för pris och uppfyllda bör-krav, högsta slutsumma vinner.",null,null,null,null,null,null,null,null,null,null,null,null,null,"Sammanställning för detta avropssvar",null,"Fyll i det gula fältet efter att samtliga avropssvar inkommit!","När det gula fältet är ifyllt sker en automatisk poängberäkning. Lägst pris divideras med det aktuella avropssvarets pris, multipliceras med 100 och därefter med angiven viktning. \nPoängsumman för uppfyllda bör-krav divideras med max poäng för uppfyllda bör-krav, multipliceras med 100 och därefter med angiven viktning. \nEn slutlig poängsumma för detta avropssvar kommer att framgå av fältet längst till höger. Denna slutliga poängsumma ligger till grund för tilldelningsbeslutet.\n"]
["Ut1","Priset jämförs mellan avropssvaren. Poäng för uppfyllda bör-krav jämförs med möjlig maxpoäng. "]
["Ut1","Tilldelningskriterier"]
["Ut1","Ange kriterievikt för pris respektive bör-krav i tabellen nedan",null,null,null,null,null,null,null,"Viktning %",null,null,null,null,null,null,"Viktning","Lägsta inkomna totalpris","Erhållen poäng för totalpris",null,"Viktade poäng per kriterium",null,"Slutlig poängsumma för detta avropssvar\n(utvärderas)"]
["Ut1","Pris",null,null,null,null,null,null,"Utvärdering av det totala sammanräknade priset: ",1,null,null,null,null,null,"Totalpris"]
["Ut1","Utvärderingskrav \n(bör-krav)",null,null,null,null,null,null,"Utvärdering av ställda bör-krav på avropade tjänster: ",0,null,null,null,null,null,{"$f":"Y69","v":0},{"$f":"J146","v":1},null,{"$f":"IFERROR(R147/P147*100,0)","v":0},null,{"$f":"IFERROR(S147*Q147,\"\")","v":0},null,{"$f":"IFERROR(SUM(U147+U149),\"\")","v":""}]
["Ut1","Summa kriterievikt:",null,null,null,null,null,null,"(ska alltid summera till 100 %)",{"$f":"J147+J146","v":1},null,null,null,null,null,"Poängsumma för uppfyllda bör-krav"]
["Ut1",null,null,null,null,null,null,null,null,null,null,null,null,null,null,{"$f":"Q138","v":0},{"$f":"J147","v":0},null,null,null,{"$f":"IFERROR(((P149/L138)*100)*Q149,\"\")","v":""}]
["Ut1"]
["Ut1"]
[]
["Ut2","Alt. 3. Prisavdrag för uppfyllda bör-krav, lägsta utvärderingskostnad vinner. ",null,null,null,null,null,null,null,null,null,null,null,null,null,"Prisavdrag för uppfyllda bör-krav. ",null,"Summa utvärderingskostnad för detta avropssvar"]
["Ut2","Det erhållna prisavdraget för uppfyllda utvärderingskrav (bör-krav) dras ifrån det totala priset för avropade tjänster. Resultatet blir en utvärderingskostnad som ligger till grund för tilldelningsbeslutet.",null,null,null,null,null,null,null,null,null,null,null,null,null,{"$f":"V138","v":0},null,{"$f":"Y69-P154","v":0}]
["Ut2",null,null,null,null,null,null,null,null,null,null,null,null,null,null,null,null,"OBS! Ej detsamma som kontraktssumma"]
["Ut2"]
["Ut2"]
[]
["Ut3","Alt. 4. Annan utvärderingsmodell (än de ovan föreslagna)"]
["Ut3"]
["Ut3","Avropande organisations beskrivning av den utvärderingsmodell som kommer att tillämpas (eller hänvisning till bilaga)"]
["Ut3"]
["Ut3"]
["Ut3"]
["Ut3"]
["Ut3"]
["Ut3"]
["Ut3"]
[]
[]
[null,"Steg 5 - Övriga kontraktsvillkor"]
[null,"Ramavtalets allmänna villkor utgör alltid en del av kontraktet."]
[null,"Leveranstid"]
[null,"Ange ev leveranstid/er för tjänsten/tjänsterna"]
[]
[]
[]
[]
[null,"Leveransadress (om annan än ovan)"]
[null,"Ange ev adress för tjänsten/tjänsterna"]
[]
[]
[]
[]
[null,"Faktureringsuppgifter "]
[null,"Ange fakturareferens och information om hur leverantören ska skicka e-faktura till myndigheten, t.ex. en länk till information om e-faktura på myndighetens webbplats"]
[]
[]
[]
[]
[]
[]
[null,"Leveransvillkor (framgår av ramavtalets allmänna villkor)"]
[null,"Ev. precisering av leveransvillkor"]
[]
[]
[]
[]
[null,"Kompletterande avtalsdokument"]
[null,"T.ex. säkerhetsskyddsavtal, personuppgiftsbiträdesavtal, sekretessavtal (alternativt enl separat bilaga) \n"]
[]
[]
[]
[]
[null,"Övrig information"]
[null,"Ange övriga specifika förutsättningar (tex ev budgetrestriktioner), förhållanden eller önskemål som kan vara viktiga för leverantören och som inte framgår på annan plats i dokumentet."]
[]
[]
[]
[]
[]
[]
[]
[]
[]
[]
[]
[null,"Bilagor från avropande organisation (kontraktshandlingar framgår av flik 2)",null,null,null,null,null,null,null,null,null,null,null,null,null,"Bilagor från leverantören"]
[null,"Specificera ev. bilagor som medföljer denna avropsförfrågan",null,null,null,null,null,null,null,null,null,null,null,null,null,"Specificera ev. bilagor som medföljer detta avropssvar"]
[]
[]
[]
[]
[]
[]
[null,null,null,null,null,null,null,null,null,null,null,null,null,null,null,"Leverantören har lämnat begärda prisuppgifter som gäller för offererade tjänster enligt ställda krav samt accepterar i övrigt kraven i avropsförfrågan och är införstådd med att samtliga lämnade uppgifter i avropssvaret är bindande\n"]
[]
[null,"OBS! Spara inte blanketten i PDF-format. Då kan inte leverantörerna fylla i den. Lås blanketten med \"låsknappen\" nedan innan ni skickar blanketten till leverantörerna.",null,null,null,null,null,null,null,null,null,null,null,null,null,{"$f":"\"Leverantören intygar att avropssvaret är giltigt minst den tid som avropande organisation angett ovan. \"&CHAR(10)&\"(\"&TEXT(D34,\"ÅÅÅÅ-MM-DD\")&\")\"","v":"Leverantören intygar att avropssvaret är giltigt minst den tid som avropande organisation angett ovan. \n(1900-01-00)"}]
[null,null,null,null,null,null,null,null,null,null,null,null,null,null,null,"Ort, datum"]
[null,null,null,null,null,"Observera att lösenordet måste innehålla\n minst en bokstav!",null,null,null,null,null,null,null,null,null,null,null,null,null,null,null,null,null,null,null,null,null,null,null,null,null,null,null,{"$f":"IF(P230=0,TRUE,FALSE)","v":true}]
[]
[null,null,null,null,null,null,null,null,null,null,null,null,null,null,null,"Namn, befattning (behörig företrädare för leverantören)"]
[]
[null,"OBS! \nOm ni bifogar denna avropsmall till ett e-postmeddelande rekommenderar vi att ni begär att få ett leverans- och/eller läskvitto från den mottagande leverantörens brevlåda. Detta för att säkerställa att de tagit emot avropsförfrågan. De makron som finns i avropsmallen kan i vissa fall orsaka att avropsförfrågan fastnar i leverantörers brandväggar. \nAtt komprimera (\"zippa\") filen innan ni bifogar den till ett e-postmeddelande kan också underlätta mottagandet då många e-postklienter föredrar zip-filer framför xlsm-filer. ",null,null,null,null,null,null,null,null,null,null,null,null,null,null,null,null,null,null,null,null,null,null,null,null,null,null,null,null,null,null,null,{"$f":"IF(P233=0,TRUE,FALSE)","v":true}]
[]
[null,null,null,null,null,null,null,null,null,null,null,null,null,null,null,null,null,null,null,{"$f":"IF(LarmStatus,\"Minst ett av de obligatoriska kraven är inte ifyllda eller besvarde med Nej\",\"\")","v":"Minst ett av de obligatoriska kraven är inte ifyllda eller besvarde med Nej"}]

{"sheet":"2 Avtalstecknande","index":1,"n_rows":33,"n_cols":4,"rows_kept":33,"cut":false,"hidden":false,"merged":[[37,1,37,3],[18,1,18,3],[33,1,33,3],[5,1,5,3],[34,1,34,3],[35,1,35,3],[36,1,36,3],[7,1,7,3],[9,1,9,3],[11,1,11,3],[14,1,14,3],[15,1,15,3]]}
[null,null,null,{"$f":"\"Avrop nr: \"&'1 Specifikation'!B15","v":"Avrop nr: "}]
[]
[]
[]
[null,"Kontrakt"]
[null,{"$f":"\"Detta kontrakt reglerar avrop från ramavtalsområde \"&'1 Specifikation'!J5&\", \"&'1 Specifikation'!J8","v":"Detta kontrakt reglerar avrop från ramavtalsområde IT-konsulttjänster, "}]
[null,"Kontraktets omfattning"]
[null,"Leveransens omfattning och villkor framgår av Kontraktet med tillhörande bilagor samt Ramavtalet. Om handlingarna innehåller motstridiga uppgifter ska handlingarna gälla i nedan nämnd ordning om inte omständigheterna uppenbarligen föranleder annat."]
[null,"1. Skriftliga ändringar och tillägg till Kontrakt"]
[null,"2. Kontrakt med bilagor, inkl. Allmänna villkor"]
[null,"3. Eventuellt kompletterande Avropsförfrågan"]
[null,"4. Avropsförfrågan med bilagor "]
[null,"5. Eventuella tillåtna kompletteringar av Avropssvar"]
[null,"6. Avropssvar med bilagor"]
[]
[null,"Innehåller leverantörens avropssvar uppgifter som inte efterfrågats i avropsblanketten är dessa uppgifter giltiga endast om en skriftlig överenskommelse träffas särskilt angående detta. Hänvisning till leverantörens egna allmänna villkor eller motsvarande är endast giltiga om en särskild överenskommelse avseende detta tecknas."]
[]
[null,"Underskrift"]
[null,"Underskriften avser ett kontraktstecknande. Efter undertecknande av bägge parter utgör denna blankett tillsammans med ramavtalets villkor enligt ovan ett kontrakt mellan parterna.\n\nDetta kontrakt har upprättats i två exemplar varav parterna tagit var sitt."]
[]
[null,"Avropande organisation",null,"Leverantör"]
[null,{"$f":"'1 Specifikation'!B9","v":0},null,{"$f":"'1 Specifikation'!P9","v":0}]
[null,"Org.nr.",null,"Org.nr."]
[null,{"$f":"'1 Specifikation'!H9","v":0},null,{"$f":"'1 Specifikation'!V9","v":0}]
[]
[null,"Ort, datum",null,"Ort, datum"]
[]
[]
[null,"Namn, befattning \n(behörig företrädare för avropande organisation)",null,"Namn, befattning \n(behörig företrädare för leverantören)"]
[]
[]
[]
[null,"Eventuella bilagor till kontraktet"]

{"sheet":"Admin","index":2,"n_rows":142,"n_cols":29,"rows_kept":142,"cut":false,"hidden":true,"merged":[]}
[null,null,null,null,null,null,null,null,null,null,"ResVarTja"]
[null,null,null,"Delområde 1","Delområde 2","Delområde 3","Delområde 4","Delområde 5","Delområde 6","Delområde 7",{"$f":"'1 Specifikation'!B43","v":"Välj kompetensområde"}]
[null,null,"TblDelområde",{"$f":"C5","v":"1. Verksamhetens IT-behov"},{"$f":"C6","v":"2. Ledning av IT-projekt"},{"$f":"C7","v":"3. Säkerhet i IT och IT-projekt"},{"$f":"C8","v":"4. Arkitektur och Utveckling"},{"$f":"C9","v":"5. Helhet, IT-konsultlösningar"},{"$f":"C10","v":0},{"$f":"C11","v":0},{"$f":"IFERROR(IF(INDEX(D3:J3,MATCH(K$2,D$2:J$2,0))=0,\"\",INDEX(D3:J3,MATCH(K$2,D$2:J$2,0))),\"\")","v":""}]
[null,null,"Välj kompetensområde","Välj kompetens/roll","Välj kompetens/roll","Välj kompetens/roll","Välj kompetens/roll","Välj kompetens/roll",null,null,"Välj kompetens/roll"]
[null,null,"1. Verksamhetens IT-behov","Kravhantering och Kravanalys","Förvaltningsledning","Informationssäkerhetsexpertis","Enterprisearkitektur","Kravhantering och Kravanalys",null,null,{"$f":"IFERROR(IF(INDEX(D5:J5,MATCH(K$2,D$3:J$3,0))=0,\"\",INDEX(D5:J5,MATCH(K$2,D$3:J$3,0))),\"\")","v":""}]
[null,null,"2. Ledning av IT-projekt","Metodstöd","Projektledning","IT-säkerhetsanalys/IT-säkerhetsstrategi","Infrastrukturarkitektur","Metodstöd",null,null,""]
[null,null,"3. Säkerhet i IT och IT-projekt","Modelleringsledning","Teknisk Projektledning","IT-säkerhetsteknik","Lösningsarkitektur","Modelleringsledning",null,null,""]
[null,null,"4. Arkitektur och Utveckling","Verksamhetsanalys och Verksamhetsutveckling","Tjänsteansvar","Egendefinierad kompetens/roll","Mjukvaruarkitektur","Verksamhetsanalys och Verksamhetsutveckling",null,null,""]
[null,null,"5. Helhet, IT-konsultlösningar","Användbarhetsarkitektur","Egendefinierad kompetens/roll",null,"Verksamhetsarkitektur","Användbarhetsarkitektur",null,null,""]
[null,null,null,"Användbarhetsdesign/UX-designer",null,null,"Databasdesign- och administration","Användbarhetsdesign/UX-designer",null,null,""]
[null,null,null,"Grafisk formgivning",null,null,"Konfigurations- och versionshantering","Grafisk formgivning",null,null,""]
[null,null,null,"Teknisk skribent/dokumentation/teknisk information",null,null,"Systemintegration","Teknisk skribent/dokumentation/teknisk information",null,null,""]
[null,null,null,"Test av användbarhet och användargränssnitt",null,null,"Systemutveckling","Test av användbarhet och användargränssnitt",null,null,""]
[null,null,null,"Tillgänglighetsanpassning",null,null,"Webbutveckling","Tillgänglighetsanpassning",null,null,""]
[null,null,null,"Webbdesign",null,null,"Test","Webbdesign",null,null,""]
[null,null,null,"Egendefinierad roll",null,null,"Testledning","Förvaltningsledning",null,null,""]
[null,null,null,null,null,null,"Egendefinierad kompetens/roll","Projektledning",null,null,""]
[null,null,null,null,null,null,null,"Teknisk Projektledning",null,null,{"$f":"IFERROR(IF(INDEX(D18:J18,MATCH(K$2,D$3:J$3,0))=0,\"\",INDEX(D18:J18,MATCH(K$2,D$3:J$3,0))),\"\")","v":""}]
[null,null,null,null,null,null,null,"Tjänsteansvar",null,null,""]
[null,null,null,null,null,null,null,"Informationssäkerhetsexpertis",null,null,""]
[null,null,null,null,null,null,null,"IT-säkerhetsanalys/IT-säkerhetsstrategi",null,null,""]
[null,null,null,null,null,null,null,"IT-säkerhetsteknik",null,null,""]
[null,null,null,null,null,null,null,"Enterprisearkitektur",null,null,""]
[null,null,null,null,null,null,null,"Infrastrukturarkitektur",null,null,""]
[null,null,null,null,null,null,null,"Lösningsarkitektur",null,null,""]
[null,null,null,null,null,null,null,"Mjukvaruarkitektur",null,null,""]
[null,null,null,null,null,null,null,"Verksamhetsarkitektur",null,null,""]
[null,null,null,null,null,null,null,"Databasdesign- och administration",null,null,""]
[null,null,null,null,null,null,null,"Konfigurations- och versionshantering",null,null,{"$f":"IFERROR(IF(INDEX(D29:J29,MATCH(K$2,D$3:J$3,0))=0,\"\",INDEX(D29:J29,MATCH(K$2,D$3:J$3,0))),\"\")","v":""}]
[null,null,null,null,null,null,null,"Systemintegration",null,null,""]
[null,null,null,null,null,null,null,"Systemutveckling",null,null,""]
[null,null,null,null,null,null,null,"Webbutveckling",null,null,""]
[null,null,null,null,null,null,null,"Test",null,null,""]
[null,null,null,null,null,null,null,"Testledning",null,null,""]
[null,null,null,null,null,null,null,"Egendefinierad kompetens/roll",null,null,""]
[]
[]
[null,null,null,"Vara/Tjanster",null,null,null,null,null,"ResOpt"]
[null,null,null,"Välj Vara/Tjanst",{"$f":"D39","v":"Välj Vara/Tjanst"},{"$f":"E39","v":"Välj Vara/Tjanst"},{"$f":"F39","v":"Välj Vara/Tjanst"},{"$f":"G39","v":"Välj Vara/Tjanst"},{"$f":"H39","v":"Välj Vara/Tjanst"},{"$f":"INDEX(D39:I39,MATCH(K$2,D$2:I$2,0))","v":{"$error":"#N/A"}}]
[null,null,null,"Delområde 1/Vara/Tjanst 1","Delområde 2/Vara/Tjanst 1","Delområde 3/Vara/Tjanst 1","Delområde 4/Vara/Tjanst 1","Delområde 5/Vara/Tjanst 1","Delområde 6/Vara/Tjanst 1",{"$f":"IFERROR(IF(INDEX(D40:I40,MATCH(K$2,D$2:I$2,0))=0,\"\",INDEX(D40:I40,MATCH(K$2,D$2:I$2,0))),\"\")","v":""}]
[null,null,null,"Delområde 1/Vara/Tjanst 2","Delområde 2/Vara/Tjanst 2","Delområde 3/Vara/Tjanst 2","Delområde 4/Vara/Tjanst 2","Delområde 5/Vara/Tjanst 2","Delområde 6/Vara/Tjanst 2",""]
[null,null,null,"Delområde 1/Vara/Tjanst 3","Delområde 2/Vara/Tjanst 3","Delområde 3/Vara/Tjanst 3","Delområde 4/Vara/Tjanst 3","Delområde 5/Vara/Tjanst 3","Delområde 6/Vara/Tjanst 3",""]
[null,null,null,"Delområde 1/Vara/Tjanst 4","Delområde 2/Vara/Tjanst 4","Delområde 3/Vara/Tjanst 4","Delområde 4/Vara/Tjanst 4","Delområde 5/Vara/Tjanst 4","Delområde 6/Vara/Tjanst 4",""]
[null,null,null,"Delområde 1/Vara/Tjanst 5","Delområde 2/Vara/Tjanst 5","Delområde 3/Vara/Tjanst 5","Delområde 4/Vara/Tjanst 5","Delområde 5/Vara/Tjanst 5","Delområde 6/Vara/Tjanst 5",""]
[null,null,null,"Delområde 1/Vara/Tjanst 6","Delområde 2/Vara/Tjanst 6","Delområde 3/Vara/Tjanst 6","Delområde 4/Vara/Tjanst 6","Delområde 5/Vara/Tjanst 6","Delområde 6/Vara/Tjanst 6",""]
[null,null,null,"Delområde 1/Vara/Tjanst 7","Delområde 2/Vara/Tjanst 7","Delområde 3/Vara/Tjanst 7","Delområde 4/Vara/Tjanst 7","Delområde 5/Vara/Tjanst 7","Delområde 6/Vara/Tjanst 7",""]
[null,null,null,"Delområde 1/Vara/Tjanst 8","Delområde 2/Vara/Tjanst 8","Delområde 3/Vara/Tjanst 8","Delområde 4/Vara/Tjanst 8","Delområde 5/Vara/Tjanst 8","Delområde 6/Vara/Tjanst 8",""]
[null,null,null,"Delområde 1/Vara/Tjanst 9","Delområde 2/Vara/Tjanst 9","Delområde 3/Vara/Tjanst 9","Delområde 4/Vara/Tjanst 9","Delområde 5/Vara/Tjanst 9","Delområde 6/Vara/Tjanst 9",""]
[null,null,null,"Delområde 1/Vara/Tjanst 10","Delområde 2/Vara/Tjanst 10","Delområde 3/Vara/Tjanst 10","Delområde 4/Vara/Tjanst 10","Delområde 5/Vara/Tjanst 10","Delområde 6/Vara/Tjanst 10",""]
[null,null,null,"Delområde 1/Vara/Tjanst 11","Delområde 2/Vara/Tjanst 11","Delområde 3/Vara/Tjanst 11","Delområde 4/Vara/Tjanst 11","Delområde 5/Vara/Tjanst 11","Delområde 6/Vara/Tjanst 11",""]
[null,null,null,"Delområde 1/Vara/Tjanst 12","Delområde 2/Vara/Tjanst 12","Delområde 3/Vara/Tjanst 12","Delområde 4/Vara/Tjanst 12","Delområde 5/Vara/Tjanst 12","Delområde 6/Vara/Tjanst 12",""]
[null,null,null,"Delområde 1/Vara/Tjanst 13","Delområde 2/Vara/Tjanst 13","Delområde 3/Vara/Tjanst 13","Delområde 4/Vara/Tjanst 13","Delområde 5/Vara/Tjanst 13","Delområde 6/Vara/Tjanst 13",""]
[null,null,null,"Delområde 1/Vara/Tjanst 14","Delområde 2/Vara/Tjanst 14","Delområde 3/Vara/Tjanst 14","Delområde 4/Vara/Tjanst 14","Delområde 5/Vara/Tjanst 14","Delområde 6/Vara/Tjanst 14",""]
[null,null,null,"Delområde 1/Vara/Tjanst 15","Delområde 2/Vara/Tjanst 15","Delområde 3/Vara/Tjanst 15","Delområde 4/Vara/Tjanst 15","Delområde 5/Vara/Tjanst 15","Delområde 6/Vara/Tjanst 15",""]
[null,null,null,"Delområde 1/Vara/Tjanst 16","Delområde 2/Vara/Tjanst 16","Delområde 3/Vara/Tjanst 16","Delområde 4/Vara/Tjanst 16","Delområde 5/Vara/Tjanst 16","Delområde 6/Vara/Tjanst 16",""]
[null,null,null,"Delområde 1/Vara/Tjanst 17","Delområde 2/Vara/Tjanst 17","Delområde 3/Vara/Tjanst 17","Delområde 4/Vara/Tjanst 17","Delområde 5/Vara/Tjanst 17","Delområde 6/Vara/Tjanst 17",""]
[null,null,null,"Delområde 1/Vara/Tjanst 18","Delområde 2/Vara/Tjanst 18","Delområde 3/Vara/Tjanst 18","Delområde 4/Vara/Tjanst 18","Delområde 5/Vara/Tjanst 18","Delområde 6/Vara/Tjanst 18",""]
[null,null,null,"Delområde 1/Vara/Tjanst 19","Delområde 2/Vara/Tjanst 19","Delområde 3/Vara/Tjanst 19","Delområde 4/Vara/Tjanst 19","Delområde 5/Vara/Tjanst 19","Delområde 6/Vara/Tjanst 19",""]
[null,null,null,"Delområde 1/Vara/Tjanst 20","Delområde 2/Vara/Tjanst 20","Delområde 3/Vara/Tjanst 20","Delområde 4/Vara/Tjanst 20","Delområde 5/Vara/Tjanst 20","Delområde 6/Vara/Tjanst 20",""]
[null,null,null,"Delområde 1/Vara/Tjanst 21","Delområde 2/Vara/Tjanst 21","Delområde 3/Vara/Tjanst 21","Delområde 4/Vara/Tjanst 21","Delområde 5/Vara/Tjanst 21","Delområde 6/Vara/Tjanst 21",""]
[null,null,null,"Delområde 1/Vara/Tjanst 22","Delområde 2/Vara/Tjanst 22","Delområde 3/Vara/Tjanst 22","Delområde 4/Vara/Tjanst 22","Delområde 5/Vara/Tjanst 22","Delområde 6/Vara/Tjanst 22",""]
[null,null,null,"Delområde 1/Vara/Tjanst 23","Delområde 2/Vara/Tjanst 23","Delområde 3/Vara/Tjanst 23","Delområde 4/Vara/Tjanst 23","Delområde 5/Vara/Tjanst 23","Delområde 6/Vara/Tjanst 23",""]
[null,null,null,"Delområde 1/Vara/Tjanst 24","Delområde 2/Vara/Tjanst 24","Delområde 3/Vara/Tjanst 24","Delområde 4/Vara/Tjanst 24","Delområde 5/Vara/Tjanst 24","Delområde 6/Vara/Tjanst 24",""]
[null,null,null,"Delområde 1/Vara/Tjanst 25","Delområde 2/Vara/Tjanst 25","Delområde 3/Vara/Tjanst 25","Delområde 4/Vara/Tjanst 25","Delområde 5/Vara/Tjanst 25","Delområde 6/Vara/Tjanst 25",""]
[]
[null,null,null,null,null,null,null,null,null,"Region"]
[null,null,null,"TblGrundTilldeln",null,"Tbl krav",null,"TblEnhet",null,"Multiregionalt"]
[null,null,null,null,null,"Välj krav",null,"Enl. bilaga",null,"Blekinge län"]
[null,null,null,null,null,"Krav 1",null,"Timmar",null,"Dalarnas län"]
[null,null,null,"Alt. 2. Ekonomiskt mest fördelaktiga (bästa förhållande mellan pris och kvalitet)",null,"Krav 2",null,null,null,"Gotlands län"]
[null,null,null,null,null,"Krav 3",null,null,null,"Gävleborgs län"]
[null,null,null,"TblUtVrd",null,"Krav 4",null,null,null,"Hallands län"]
[null,null,null,"Välj utvärdering…..",null,"Krav 5",null,null,null,"Jämtlands län"]
[null,null,null,"Alt. 1. Lägsta pris",null,"Krav 6",null,null,null,"Jönköpings län"]
[null,null,null,"Alt. 2. Relativ viktning - summan av viktade poäng för pris och uppfyllda bör-krav",null,"Se bilaga",null,null,null,"Kalmars län"]
[null,null,null,"Alt. 3. Mervärdesmodell - prisavdrag för uppfyllda bör-krav",null,null,null,null,null,"Kronobergs län"]
[null,null,null,"Alt. 4. Annan utvärderingsmodell",null,"ValBilaga",null,null,null,"Norrbottens län"]
[null,null,null,null,null,null,null,null,null,"Skånes län"]
[null,null,null,null,null,"Ja",null,null,null,"Stockholms län"]
[null,null,null,null,null,"Nej",null,null,null,"Södermanlands län"]
[null,null,null,null,null,null,null,null,null,"Uppsala län"]
[null,null,null,null,null,null,null,null,null,"Värmlands län"]
[null,null,null,null,null,null,null,null,null,"Västerbottens län"]
[null,null,null,null,null,null,null,null,null,"Västernorrlands län"]
[null,null,null,null,null,null,null,null,null,"Västmanlands län"]
[null,null,null,null,null,null,null,null,null,"Västra Götalands län"]
[null,null,null,null,null,null,null,null,null,"Örebro län"]
[null,null,null,null,null,null,null,null,null,"Östergötlands lön"]
[]
[null,null,"TblLeverantörer"]
[null,null,"Juridiskt Namn","Förvaltningens avtalsnummer ","Organisations-nummer","Adress","Postnummer","Postadress","Telefon Växel","Telefon kundtjänst","Hemsida","Kontaktperson ","Telefon","E-post kontaktperson","Befattning Kontaktperson","Fax","E-post Gruppbrevlåda"]
[]
[null,null,{"$f":"\"Välj \"&C91","v":"Välj Juridiskt Namn"},{"$f":"D91","v":"Förvaltningens avtalsnummer "},"Organisations-nummer","Adress","Postnummer","Postadress","Telefon Växel","Telefon kundtjänst","Hemsida","Kontaktperson ","Telefon","E-post kontaktperson","Befattning Kontaktperson","Fax","E-post Gruppbrevlåda"]
[null,null,"Välj Juridiskt Namn 2","Förvaltningens avtalsnummer  2","Organisations-nummer 2","Adress 2","Postnummer 2","Postadress 2","Telefon Växel 2","Telefon kundtjänst 2","Hemsida 2","Kontaktperson  2","Telefon 2","E-post kontaktperson 2","Befattning Kontaktperson 2","Fax 2","E-post Gruppbrevlåda 2"]
[]
[]
[]
[]
[]
[]
[]
[]
[]
[]
[]
[]
[]
[]
[]
[null,null,null,null,"TblKrv2",30,{"$f":"F110+1","v":31},{"$f":"G110+1","v":32},33,34,35,36,37,38,39,40,41,42,43,44,45,46,47,48,49,50,51,52,53]
[null,null,"TblSpecTjnstr",null,{"$f":"J40","v":""},{"$f":"INDIRECT(\"J\"&F110)","v":0},{"$f":"INDIRECT(\"J\"&G110)","v":0},0,0,0,0,0,0,"ResOpt",{"$error":"#N/A"},"","","","",{"$f":"INDIRECT(\"J\"&T110)","v":""},"","","","","","","","",""]
[null,null,"Välj kompetens/roll",null,"Delområde 1/Vara/Tjanst 1/Krav1","Delområde 1/Vara/Tjanst 2/Krav1","Delområde 1/Vara/Tjanst 3/Krav1","Delområde 1/Vara/Tjanst 4/Krav1","Delområde 1/Vara/Tjanst 5/Krav1","Delområde 1/Vara/Tjanst 6/Krav1","Delområde 1/Vara/Tjanst 7/Krav1","Delområde 1/Vara/Tjanst 8/Krav1","Delområde 1/Vara/Tjanst 9/Krav1","Delområde 1/Vara/Tjanst 10/Krav1","Delområde 1/Vara/Tjanst 11/Krav1","Delområde 1/Vara/Tjanst 12/Krav1","Delområde 1/Vara/Tjanst 13/Krav1","Delområde 1/Vara/Tjanst 14/Krav1","Delområde 1/Vara/Tjanst 15/Krav1","Delområde 1/Vara/Tjanst 16/Krav1","Delområde 1/Vara/Tjanst 17/Krav1","Delområde 1/Vara/Tjanst 18/Krav1","Delområde 1/Vara/Tjanst 19/Krav1","Delområde 1/Vara/Tjanst 20/Krav1","Delområde 1/Vara/Tjanst 21/Krav1","Delområde 1/Vara/Tjanst 22/Krav1","Delområde 1/Vara/Tjanst 23/Krav1","Delområde 1/Vara/Tjanst 24/Krav1","Delområde 1/Vara/Tjanst 25/Krav1"]
[null,null,{"$f":"IF('1 Specifikation'!C48:E48=\"Välj tjänst/exempelroll\",\"\",'1 Specifikation'!B48&\"- \"&'1 Specifikation'!C48)","v":"01.- Välj kompetens/roll"},null,"Delområde 1/Vara/Tjanst 1/Krav2","Delområde 1/Vara/Tjanst 2/Krav2","Delområde 1/Vara/Tjanst 3/Krav2","Delområde 1/Vara/Tjanst 4/Krav2","Delområde 1/Vara/Tjanst 5/Krav2","Delområde 1/Vara/Tjanst 6/Krav2","Delområde 1/Vara/Tjanst 7/Krav2","Delområde 1/Vara/Tjanst 8/Krav2","Delområde 1/Vara/Tjanst 9/Krav2","Delområde 1/Vara/Tjanst 10/Krav2","Delområde 1/Vara/Tjanst 11/Krav2","Delområde 1/Vara/Tjanst 12/Krav2","Delområde 1/Vara/Tjanst 13/Krav2","Delområde 1/Vara/Tjanst 14/Krav2","Delområde 1/Vara/Tjanst 15/Krav2","Delområde 1/Vara/Tjanst 16/Krav2","Delområde 1/Vara/Tjanst 17/Krav2","Delområde 1/Vara/Tjanst 18/Krav2","Delområde 1/Vara/Tjanst 19/Krav2","Delområde 1/Vara/Tjanst 20/Krav2","Delområde 1/Vara/Tjanst 21/Krav2","Delområde 1/Vara/Tjanst 22/Krav2","Delområde 1/Vara/Tjanst 23/Krav2","Delområde 1/Vara/Tjanst 24/Krav2","Delområde 1/Vara/Tjanst 25/Krav2"]
[null,null,{"$f":"IF('1 Specifikation'!C49:E49=\"Välj tjänst/exempelroll\",\"\",'1 Specifikation'!B49&\"- \"&'1 Specifikation'!C49)","v":"02.- Välj kompetens/roll"},null,"Delområde 1/Vara/Tjanst 1/Krav3","Delområde 1/Vara/Tjanst 2/Krav3","Delområde 1/Vara/Tjanst 3/Krav3","Delområde 1/Vara/Tjanst 4/Krav3","Delområde 1/Vara/Tjanst 5/Krav3","Delområde 1/Vara/Tjanst 6/Krav3","Delområde 1/Vara/Tjanst 7/Krav3","Delområde 1/Vara/Tjanst 8/Krav3","Delområde 1/Vara/Tjanst 9/Krav3","Delområde 1/Vara/Tjanst 10/Krav3","Delområde 1/Vara/Tjanst 11/Krav3","Delområde 1/Vara/Tjanst 12/Krav3","Delområde 1/Vara/Tjanst 13/Krav3","Delområde 1/Vara/Tjanst 14/Krav3","Delområde 1/Vara/Tjanst 15/Krav3","Delområde 1/Vara/Tjanst 16/Krav3","Delområde 1/Vara/Tjanst 17/Krav3","Delområde 1/Vara/Tjanst 18/Krav3","Delområde 1/Vara/Tjanst 19/Krav3","Delområde 1/Vara/Tjanst 20/Krav3","Delområde 1/Vara/Tjanst 21/Krav3","Delområde 1/Vara/Tjanst 22/Krav3","Delområde 1/Vara/Tjanst 23/Krav3","Delområde 1/Vara/Tjanst 24/Krav3","Delområde 1/Vara/Tjanst 25/Krav3"]
[null,null,{"$f":"IF('1 Specifikation'!C50:E50=\"Välj tjänst/exempelroll\",\"\",'1 Specifikation'!B50&\"- \"&'1 Specifikation'!C50)","v":"03.- Välj kompetens/roll"},null,"Delområde 1/Vara/Tjanst 1/Krav4","Delområde 1/Vara/Tjanst 2/Krav4","Delområde 1/Vara/Tjanst 3/Krav4","Delområde 1/Vara/Tjanst 4/Krav4","Delområde 1/Vara/Tjanst 5/Krav4","Delområde 1/Vara/Tjanst 6/Krav4","Delområde 1/Vara/Tjanst 7/Krav4","Delområde 1/Vara/Tjanst 8/Krav4","Delområde 1/Vara/Tjanst 9/Krav4","Delområde 1/Vara/Tjanst 10/Krav4","Delområde 1/Vara/Tjanst 11/Krav4","Delområde 1/Vara/Tjanst 12/Krav4","Delområde 1/Vara/Tjanst 13/Krav4","Delområde 1/Vara/Tjanst 14/Krav4","Delområde 1/Vara/Tjanst 15/Krav4","Delområde 1/Vara/Tjanst 16/Krav4","Delområde 1/Vara/Tjanst 17/Krav4","Delområde 1/Vara/Tjanst 18/Krav4","Delområde 1/Vara/Tjanst 19/Krav4","Delområde 1/Vara/Tjanst 20/Krav4","Delområde 1/Vara/Tjanst 21/Krav4","Delområde 1/Vara/Tjanst 22/Krav4","Delområde 1/Vara/Tjanst 23/Krav4","Delområde 1/Vara/Tjanst 24/Krav4","Delområde 1/Vara/Tjanst 25/Krav4"]
[null,null,{"$f":"IF('1 Specifikation'!C51:E51=\"Välj tjänst/exempelroll\",\"\",'1 Specifikation'!B51&\"- \"&'1 Specifikation'!C51)","v":"04.- Välj kompetens/roll"},null,"Delområde 1/Vara/Tjanst 1/Krav5","Delområde 1/Vara/Tjanst 2/Krav5","Delområde 1/Vara/Tjanst 3/Krav5","Delområde 1/Vara/Tjanst 4/Krav5","Delområde 1/Vara/Tjanst 5/Krav5","Delområde 1/Vara/Tjanst 6/Krav5","Delområde 1/Vara/Tjanst 7/Krav5","Delområde 1/Vara/Tjanst 8/Krav5","Delområde 1/Vara/Tjanst 9/Krav5","Delområde 1/Vara/Tjanst 10/Krav5","Delområde 1/Vara/Tjanst 11/Krav5","Delområde 1/Vara/Tjanst 12/Krav5","Delområde 1/Vara/Tjanst 13/Krav5","Delområde 1/Vara/Tjanst 14/Krav5","Delområde 1/Vara/Tjanst 15/Krav5","Delområde 1/Vara/Tjanst 16/Krav5","Delområde 1/Vara/Tjanst 17/Krav5","Delområde 1/Vara/Tjanst 18/Krav5","Delområde 1/Vara/Tjanst 19/Krav5","Delområde 1/Vara/Tjanst 20/Krav5","Delområde 1/Vara/Tjanst 21/Krav5","Delområde 1/Vara/Tjanst 22/Krav5","Delområde 1/Vara/Tjanst 23/Krav5","Delområde 1/Vara/Tjanst 24/Krav5","Delområde 1/Vara/Tjanst 25/Krav5"]
[null,null,{"$f":"IF('1 Specifikation'!C52:E52=\"Välj tjänst/exempelroll\",\"\",'1 Specifikation'!B52&\"- \"&'1 Specifikation'!C52)","v":"05.- Välj kompetens/roll"},null,"Delområde 1/Vara/Tjanst 1/Krav6","Delområde 1/Vara/Tjanst 2/Krav6","Delområde 1/Vara/Tjanst 3/Krav6","Delområde 1/Vara/Tjanst 4/Krav6","Delområde 1/Vara/Tjanst 5/Krav6","Delområde 1/Vara/Tjanst 6/Krav6","Delområde 1/Vara/Tjanst 7/Krav6","Delområde 1/Vara/Tjanst 8/Krav6","Delområde 1/Vara/Tjanst 9/Krav6","Delområde 1/Vara/Tjanst 10/Krav6","Delområde 1/Vara/Tjanst 11/Krav6","Delområde 1/Vara/Tjanst 12/Krav6","Delområde 1/Vara/Tjanst 13/Krav6","Delområde 1/Vara/Tjanst 14/Krav6","Delområde 1/Vara/Tjanst 15/Krav6","Delområde 1/Vara/Tjanst 16/Krav6","Delområde 1/Vara/Tjanst 17/Krav6","Delområde 1/Vara/Tjanst 18/Krav6","Delområde 1/Vara/Tjanst 19/Krav6","Delområde 1/Vara/Tjanst 20/Krav6","Delområde 1/Vara/Tjanst 21/Krav6","Delområde 1/Vara/Tjanst 22/Krav6","Delområde 1/Vara/Tjanst 23/Krav6","Delområde 1/Vara/Tjanst 24/Krav6","Delområde 1/Vara/Tjanst 25/Krav6"]
[null,null,{"$f":"IF('1 Specifikation'!C53:E53=\"Välj tjänst/exempelroll\",\"\",'1 Specifikation'!B53&\"- \"&'1 Specifikation'!C53)","v":"06.- Välj kompetens/roll"},null,"Delområde 1/Vara/Tjanst 1/Krav7","Delområde 1/Vara/Tjanst 2/Krav7","Delområde 1/Vara/Tjanst 3/Krav7","Delområde 1/Vara/Tjanst 4/Krav7","Delområde 1/Vara/Tjanst 5/Krav7","Delområde 1/Vara/Tjanst 6/Krav7","Delområde 1/Vara/Tjanst 7/Krav7","Delområde 1/Vara/Tjanst 8/Krav7","Delområde 1/Vara/Tjanst 9/Krav7","Delområde 1/Vara/Tjanst 10/Krav7","Delområde 1/Vara/Tjanst 11/Krav7","Delområde 1/Vara/Tjanst 12/Krav7","Delområde 1/Vara/Tjanst 13/Krav7","Delområde 1/Vara/Tjanst 14/Krav7","Delområde 1/Vara/Tjanst 15/Krav7","Delområde 1/Vara/Tjanst 16/Krav7","Delområde 1/Vara/Tjanst 17/Krav7","Delområde 1/Vara/Tjanst 18/Krav7","Delområde 1/Vara/Tjanst 19/Krav7","Delområde 1/Vara/Tjanst 20/Krav7","Delområde 1/Vara/Tjanst 21/Krav7","Delområde 1/Vara/Tjanst 22/Krav7","Delområde 1/Vara/Tjanst 23/Krav7","Delområde 1/Vara/Tjanst 24/Krav7","Delområde 1/Vara/Tjanst 25/Krav7"]
[null,null,{"$f":"IF('1 Specifikation'!C54:E54=\"Välj tjänst/exempelroll\",\"\",'1 Specifikation'!B54&\"- \"&'1 Specifikation'!C54)","v":"07.- Välj kompetens/roll"},null,"Delområde 1/Vara/Tjanst 1/Krav8","Delområde 1/Vara/Tjanst 2/Krav8","Delområde 1/Vara/Tjanst 3/Krav8","Delområde 1/Vara/Tjanst 4/Krav8","Delområde 1/Vara/Tjanst 5/Krav8","Delområde 1/Vara/Tjanst 6/Krav8","Delområde 1/Vara/Tjanst 7/Krav8","Delområde 1/Vara/Tjanst 8/Krav8","Delområde 1/Vara/Tjanst 9/Krav8","Delområde 1/Vara/Tjanst 10/Krav8","Delområde 1/Vara/Tjanst 11/Krav8","Delområde 1/Vara/Tjanst 12/Krav8","Delområde 1/Vara/Tjanst 13/Krav8","Delområde 1/Vara/Tjanst 14/Krav8","Delområde 1/Vara/Tjanst 15/Krav8","Delområde 1/Vara/Tjanst 16/Krav8","Delområde 1/Vara/Tjanst 17/Krav8","Delområde 1/Vara/Tjanst 18/Krav8","Delområde 1/Vara/Tjanst 19/Krav8","Delområde 1/Vara/Tjanst 20/Krav8","Delområde 1/Vara/Tjanst 21/Krav8","Delområde 1/Vara/Tjanst 22/Krav8","Delområde 1/Vara/Tjanst 23/Krav8","Delområde 1/Vara/Tjanst 24/Krav8","Delområde 1/Vara/Tjanst 25/Krav8"]
[null,null,{"$f":"IF('1 Specifikation'!C55:E55=\"Välj tjänst/exempelroll\",\"\",'1 Specifikation'!B55&\"- \"&'1 Specifikation'!C55)","v":"08.- Välj kompetens/roll"},null,"Delområde 1/Vara/Tjanst 1/Krav9","Delområde 1/Vara/Tjanst 2/Krav9","Delområde 1/Vara/Tjanst 3/Krav9","Delområde 1/Vara/Tjanst 4/Krav9","Delområde 1/Vara/Tjanst 5/Krav9","Delområde 1/Vara/Tjanst 6/Krav9","Delområde 1/Vara/Tjanst 7/Krav9","Delområde 1/Vara/Tjanst 8/Krav9","Delområde 1/Vara/Tjanst 9/Krav9","Delområde 1/Vara/Tjanst 10/Krav9","Delområde 1/Vara/Tjanst 11/Krav9","Delområde 1/Vara/Tjanst 12/Krav9","Delområde 1/Vara/Tjanst 13/Krav9","Delområde 1/Vara/Tjanst 14/Krav9","Delområde 1/Vara/Tjanst 15/Krav9","Delområde 1/Vara/Tjanst 16/Krav9","Delområde 1/Vara/Tjanst 17/Krav9","Delområde 1/Vara/Tjanst 18/Krav9","Delområde 1/Vara/Tjanst 19/Krav9","Delområde 1/Vara/Tjanst 20/Krav9","Delområde 1/Vara/Tjanst 21/Krav9","Delområde 1/Vara/Tjanst 22/Krav9","Delområde 1/Vara/Tjanst 23/Krav9","Delområde 1/Vara/Tjanst 24/Krav9","Delområde 1/Vara/Tjanst 25/Krav9"]
[null,null,{"$f":"IF('1 Specifikation'!C56:E56=\"Välj tjänst/exempelroll\",\"\",'1 Specifikation'!B56&\"- \"&'1 Specifikation'!C56)","v":"09.- Välj kompetens/roll"}]
[null,null,{"$f":"IF('1 Specifikation'!C57:E57=\"Välj tjänst/exempelroll\",\"\",'1 Specifikation'!B57&\"- \"&'1 Specifikation'!C57)","v":"10.- Välj kompetens/roll"},null,{"$f":"IFERROR(RIGHT(INDIRECT(\"C\"&E123),LEN(INDIRECT(\"C\"&E123))-6),\"\")","v":""},"","","","","","","","","cTjnstr","ompetens/roll","älj kompetens/roll","älj kompetens/roll","älj kompetens/roll","älj kompetens/roll","älj kompetens/roll","älj kompetens/roll","älj kompetens/roll","älj kompetens/roll","älj kompetens/roll"]
[null,null,{"$f":"IF('1 Specifikation'!C58:E58=\"Välj tjänst/exempelroll\",\"\",'1 Specifikation'!B58&\"- \"&'1 Specifikation'!C58)","v":"11.- Välj kompetens/roll"},null,102,{"$f":"E123+1","v":103},{"$f":"F123+1","v":104},105,106,107,108,109,110,111,112,113,114,115,116,117,118,119,120,121,122]
[null,null,{"$f":"IF('1 Specifikation'!C59:E59=\"Välj tjänst/exempelroll\",\"\",'1 Specifikation'!B59&\"- \"&'1 Specifikation'!C59)","v":"12.- Välj kompetens/roll"},null,"TblKrvRes1","TblKrvRes2","TblKrvRes3","TblKrvRes4","TblKrvRes5","TblKrvRes6","TblKrvRes7","TblKrvRes8","TblKrvRes9","TblKrvRes10","TblKrvRes11","TblKrvRes12","TblKrvRes13","TblKrvRes14","TblKrvRes15","TblKrvRes16","TblKrvRes17","TblKrvRes18","TblKrvRes19","TblKrvRes20"]
[null,null,{"$f":"IF('1 Specifikation'!C60:E60=\"Välj tjänst/exempelroll\",\"\",'1 Specifikation'!B60&\"- \"&'1 Specifikation'!C60)","v":"13.- Välj kompetens/roll"},null,{"$f":"IFERROR(INDEX($E112:$AC112,MATCH(E$122,$E$111:$AC$111,0)),\"\")","v":"Delområde 1/Vara/Tjanst 1/Krav1"},{"$f":"IFERROR(INDEX($E112:$AC112,MATCH(F$122,$E$111:$AC$111,0)),\"\")","v":"Delområde 1/Vara/Tjanst 1/Krav1"},"Delområde 1/Vara/Tjanst 1/Krav1","Delområde 1/Vara/Tjanst 1/Krav1","Delområde 1/Vara/Tjanst 1/Krav1","Delområde 1/Vara/Tjanst 1/Krav1","Delområde 1/Vara/Tjanst 1/Krav1","Delområde 1/Vara/Tjanst 1/Krav1","Delområde 1/Vara/Tjanst 1/Krav1","","","","","","","","","","","",{"$f":"IFERROR(RIGHT(INDIRECT(\"C\"&Y123),LEN(INDIRECT(\"C\"&Y123))-6),\"\")","v":"älj kompetens/roll"}]
[null,null,{"$f":"IF('1 Specifikation'!C61:E61=\"Välj tjänst/exempelroll\",\"\",'1 Specifikation'!B61&\"- \"&'1 Specifikation'!C61)","v":"14.- Välj kompetens/roll"},null,{"$f":"IFERROR(INDEX($E113:$AC113,MATCH(E$122,$E$111:$AC$111,0)),\"\")","v":"Delområde 1/Vara/Tjanst 1/Krav2"},"Delområde 1/Vara/Tjanst 1/Krav2","Delområde 1/Vara/Tjanst 1/Krav2","Delområde 1/Vara/Tjanst 1/Krav2","Delområde 1/Vara/Tjanst 1/Krav2","Delområde 1/Vara/Tjanst 1/Krav2","Delområde 1/Vara/Tjanst 1/Krav2","Delområde 1/Vara/Tjanst 1/Krav2","Delområde 1/Vara/Tjanst 1/Krav2","","","","","","","","","","",""]
[null,null,{"$f":"IF('1 Specifikation'!C62:E62=\"Välj tjänst/exempelroll\",\"\",'1 Specifikation'!B62&\"- \"&'1 Specifikation'!C62)","v":"15.- Välj kompetens/roll"},null,"Delområde 1/Vara/Tjanst 1/Krav3","Delområde 1/Vara/Tjanst 1/Krav3","Delområde 1/Vara/Tjanst 1/Krav3","Delområde 1/Vara/Tjanst 1/Krav3","Delområde 1/Vara/Tjanst 1/Krav3","Delområde 1/Vara/Tjanst 1/Krav3","Delområde 1/Vara/Tjanst 1/Krav3","Delområde 1/Vara/Tjanst 1/Krav3","Delområde 1/Vara/Tjanst 1/Krav3","","","","","","","","","","",""]
[null,null,{"$f":"IF('1 Specifikation'!C63:E63=\"Välj tjänst/exempelroll\",\"\",'1 Specifikation'!B63&\"- \"&'1 Specifikation'!C63)","v":"16.- Välj kompetens/roll"},null,"Delområde 1/Vara/Tjanst 1/Krav4","Delområde 1/Vara/Tjanst 1/Krav4","Delområde 1/Vara/Tjanst 1/Krav4","Delområde 1/Vara/Tjanst 1/Krav4","Delområde 1/Vara/Tjanst 1/Krav4","Delområde 1/Vara/Tjanst 1/Krav4","Delområde 1/Vara/Tjanst 1/Krav4","Delområde 1/Vara/Tjanst 1/Krav4","Delområde 1/Vara/Tjanst 1/Krav4","","","","","","","","","","",""]
[null,null,{"$f":"IF('1 Specifikation'!C64:E64=\"Välj tjänst/exempelroll\",\"\",'1 Specifikation'!B64&\"- \"&'1 Specifikation'!C64)","v":"17.- Välj kompetens/roll"},null,"Delområde 1/Vara/Tjanst 1/Krav5","Delområde 1/Vara/Tjanst 1/Krav5","Delområde 1/Vara/Tjanst 1/Krav5","Delområde 1/Vara/Tjanst 1/Krav5","Delområde 1/Vara/Tjanst 1/Krav5","Delområde 1/Vara/Tjanst 1/Krav5","Delområde 1/Vara/Tjanst 1/Krav5","Delområde 1/Vara/Tjanst 1/Krav5","Delområde 1/Vara/Tjanst 1/Krav5","","","","","","","","","","",""]
[null,null,{"$f":"IF('1 Specifikation'!C65:E65=\"Välj tjänst/exempelroll\",\"\",'1 Specifikation'!B65&\"- \"&'1 Specifikation'!C65)","v":"18.- Välj kompetens/roll"},null,"Delområde 1/Vara/Tjanst 1/Krav6","Delområde 1/Vara/Tjanst 1/Krav6","Delområde 1/Vara/Tjanst 1/Krav6","Delområde 1/Vara/Tjanst 1/Krav6","Delområde 1/Vara/Tjanst 1/Krav6","Delområde 1/Vara/Tjanst 1/Krav6","Delområde 1/Vara/Tjanst 1/Krav6","Delområde 1/Vara/Tjanst 1/Krav6","Delområde 1/Vara/Tjanst 1/Krav6","","","","","","","","","","",""]
[null,null,{"$f":"IF('1 Specifikation'!C66:E66=\"Välj tjänst/exempelroll\",\"\",'1 Specifikation'!B66&\"- \"&'1 Specifikation'!C66)","v":"19.- Välj kompetens/roll"},null,"Delområde 1/Vara/Tjanst 1/Krav7","Delområde 1/Vara/Tjanst 1/Krav7","Delområde 1/Vara/Tjanst 1/Krav7","Delområde 1/Vara/Tjanst 1/Krav7","Delområde 1/Vara/Tjanst 1/Krav7","Delområde 1/Vara/Tjanst 1/Krav7","Delområde 1/Vara/Tjanst 1/Krav7","Delområde 1/Vara/Tjanst 1/Krav7","Delområde 1/Vara/Tjanst 1/Krav7","","","","","","","","","","",""]
[null,null,{"$f":"IF('1 Specifikation'!C67:E67=\"Välj tjänst/exempelroll\",\"\",'1 Specifikation'!B67&\"- \"&'1 Specifikation'!C67)","v":"20.- Välj kompetens/roll"},null,"Delområde 1/Vara/Tjanst 1/Krav8","Delområde 1/Vara/Tjanst 1/Krav8","Delområde 1/Vara/Tjanst 1/Krav8","Delområde 1/Vara/Tjanst 1/Krav8","Delområde 1/Vara/Tjanst 1/Krav8","Delområde 1/Vara/Tjanst 1/Krav8","Delområde 1/Vara/Tjanst 1/Krav8","Delområde 1/Vara/Tjanst 1/Krav8","Delområde 1/Vara/Tjanst 1/Krav8","","","","","","","","","","",""]
[null,null,null,null,"Delområde 1/Vara/Tjanst 1/Krav9","Delområde 1/Vara/Tjanst 1/Krav9","Delområde 1/Vara/Tjanst 1/Krav9","Delområde 1/Vara/Tjanst 1/Krav9","Delområde 1/Vara/Tjanst 1/Krav9","Delområde 1/Vara/Tjanst 1/Krav9","Delområde 1/Vara/Tjanst 1/Krav9","Delområde 1/Vara/Tjanst 1/Krav9","Delområde 1/Vara/Tjanst 1/Krav9","","","","","","","","","","",""]
[]
[null,null,null,null,"TblKrvKat"]
[null,null,"TblKmpNiv",null,"Avtalsvillkor"]
[null,null,"Nivå 1",null,"Faktureringsvillkor och rutiner"]
[null,null,"Nivå 2",null,"Kompetens och kompetensnivåer"]
[null,null,"Nivå 3",null,"Priser"]
[null,null,"Nivå 4",null,"Språk"]
[null,null,"Nivå 5",null,"Säkerhetsskyddsavtal och registerkontroll konsult"]
[null,null,null,null,"Tider och genomförande"]

{"sheet":"SysAdmin","index":3,"n_rows":9,"n_cols":5,"rows_kept":9,"cut":false,"hidden":true,"merged":[]}
["LockStatus",false]
["UKey","Förvaltning21",null,2,{"$f":"INDEX(E3:E5,D2)","v":"Avroppsblanketten är nu upplåst, klicka här för att låsa avropsblanketten."}]
["pkey","Förvaltning21",null,null,"Adminläge! Klicka här för att låsa vita celler."]
["Wkey","Förvaltning21","RGB",null,"Avroppsblanketten är nu upplåst, klicka här för att låsa avropsblanketten."]
["YColor"," ","255, 255, 153",null,"Avroppsblanketten är nu låst, klicka här för att låsa upp avropsblanketten."]
[null,null,"204, 255, 255"]
[null,null,"150, 150, 150",null,"Grund för tilldelning av kontrakt & Utvärderingsmodell"]
[null,null,"204, 255, 204",null,{"$f":"VALUE(IF(ISNUMBER(SEARCH(\"2\",DpDwnTDV))=TRUE,\"2\",\"1\"))","v":2}]
[null,null,"250, 191, 143",null,{"$f":"\"Alt\"&IF(ISNUMBER(SEARCH(\"1\",DpDwnUtvddrop))=TRUE,\"1\",IF(ISNUMBER(SEARCH(\"2\",DpDwnUtvddrop))=TRUE,\"2\",IF(ISNUMBER(SEARCH(\"3\",DpDwnUtvddrop))=TRUE,\"3\",IF(ISNUMBER(SEARCH(\"4\",DpDwnUtvddrop))=TRUE,\"4\"))))","v":"AltFALSKT"}]